[Event "Titled Tuesday Blitz December 27 Early 2022"]
[White "Koridze, Lile"]
[Black "Dias, Joao Batista"]
[WhiteFideId "13612514"]
[BlackFideId "2108240"]
[WhiteElo "2191"]
[BlackElo "1796"]
[Result "1-0"]
[Round "11"]
[TimeControl "180+2"]
[Date "2022.12.27"]
[WhiteClock "0:01:40"]
[BlackClock "0:02:08"]

1. d4 {[%clk 0:03:00]}  d5 {[%clk 0:02:52]} 2. c4 {[%clk 0:03:00]}  Nf6 {[%clk 0:02:52]} 3. Nf3 {[%clk 0:03:00]}  c6 {[%clk 0:02:53]} 4. e3 {[%clk 0:02:59]}  Bf5 {[%clk 0:02:53]} 5. Nbd2 {[%clk 0:02:59]}  h6 {[%clk 0:02:52]} 6. Be2 {[%clk 0:02:57]}  e6 {[%clk 0:02:53]} 7. O-O {[%clk 0:02:57]}  Bd6 {[%clk 0:02:53]} 8. b3 {[%clk 0:02:53]}  O-O {[%clk 0:02:53]} 9. h3 {[%clk 0:02:52]}  Nbd7 {[%clk 0:02:53]} 10. Bb2 {[%clk 0:02:52]}  Re8 {[%clk 0:02:53]} 11. Ne5 {[%clk 0:02:52]}  Bxe5 {[%clk 0:02:52]} 12. dxe5 {[%clk 0:02:52]}  Nh7 {[%clk 0:02:52]} 13. Nf3 {[%clk 0:02:37]}  Nhf8 {[%clk 0:02:50]} 14. Qd2 {[%clk 0:02:33]}  Bh7 {[%clk 0:02:49]} 15. Rfd1 {[%clk 0:02:33]}  Ng6 {[%clk 0:02:49]} 16. e4 {[%clk 0:02:29]}  Ne7 {[%clk 0:02:48]} 17. exd5 {[%clk 0:02:27]}  cxd5 {[%clk 0:02:48]} 18. Ba3 {[%clk 0:02:27]}  Nb6 {[%clk 0:02:42]} 19. Nd4 {[%clk 0:02:11]}  Rc8 {[%clk 0:02:38]} 20. Nb5 {[%clk 0:02:06]}  Rc6 {[%clk 0:02:30]} 21. Nd6 {[%clk 0:02:02]}  Rf8 {[%clk 0:02:26]} 22. Nxb7 {[%clk 0:02:00]}  Qc7 {[%clk 0:02:25]} 23. Nd6 {[%clk 0:01:58]}  Nf5 {[%clk 0:02:19]} 24. Nxf5 {[%clk 0:01:56]}  Bxf5 {[%clk 0:02:18]} 25. Bxf8 {[%clk 0:01:56]}  Kxf8 {[%clk 0:02:19]} 26. Qf4 {[%clk 0:01:47]}  Nd7 {[%clk 0:02:13]} 27. cxd5 {[%clk 0:01:47]}  exd5 {[%clk 0:02:13]} 28. Qxf5 {[%clk 0:01:47]}  Nxe5 {[%clk 0:02:08]} 29. Rxd5 {[%clk 0:01:40]} 1-0


[Site "https://www.chess.com"]

[Event "Titled Tuesday Blitz December 27 Early 2022"]
[White "Larina, Maria"]
[Black "Slaby, Jerzy"]
[WhiteFideId "24113182"]
[BlackFideId "1121405"]
[WhiteElo "1948"]
[BlackElo "2469"]
[Result "1-0"]
[Round "11"]
[TimeControl "180+2"]
[Date "2022.12.27"]
[WhiteClock "0:00:03"]
[BlackClock "0:00:08"]

1. e4 {[%clk 0:03:00]}  c5 {[%clk 0:02:59]} 2. Nc3 {[%clk 0:03:00]}  Nc6 {[%clk 0:02:58]} 3. g3 {[%clk 0:02:59]}  g6 {[%clk 0:02:58]} 4. Bg2 {[%clk 0:02:59]}  Bg7 {[%clk 0:02:58]} 5. d3 {[%clk 0:02:59]}  e6 {[%clk 0:02:58]} 6. Be3 {[%clk 0:02:57]}  d6 {[%clk 0:02:58]} 7. Nge2 {[%clk 0:02:55]}  Nge7 {[%clk 0:02:58]} 8. Qd2 {[%clk 0:02:54]}  O-O {[%clk 0:02:54]} 9. Bh6 {[%clk 0:02:50]}  d5 {[%clk 0:02:46]} 10. Bxg7 {[%clk 0:02:49]}  Kxg7 {[%clk 0:02:46]} 11. O-O {[%clk 0:02:44]}  Rb8 {[%clk 0:02:37]} 12. a4 {[%clk 0:02:41]}  a6 {[%clk 0:02:35]} 13. exd5 {[%clk 0:02:36]}  exd5 {[%clk 0:02:35]} 14. d4 {[%clk 0:02:36]}  c4 {[%clk 0:02:24]} 15. Nf4 {[%clk 0:02:28]}  Be6 {[%clk 0:02:23]} 16. Rfe1 {[%clk 0:02:23]}  Qd6 {[%clk 0:02:08]} 17. Nce2 {[%clk 0:02:05]}  Bf5 {[%clk 0:01:59]} 18. c3 {[%clk 0:01:53]}  h5 {[%clk 0:01:36]} 19. h3 {[%clk 0:01:51]}  Rh8 {[%clk 0:01:33]} 20. h4 {[%clk 0:01:33]}  Bd7 {[%clk 0:01:09]} 21. Nh3 {[%clk 0:01:26]}  Bxh3 {[%clk 0:01:06]} 22. Bxh3 {[%clk 0:01:25]}  Nf5 {[%clk 0:00:55]} 23. Bxf5 {[%clk 0:01:18]}  gxf5 {[%clk 0:00:54]} 24. Nf4 {[%clk 0:00:58]}  Ne7 {[%clk 0:00:40]} 25. Qe2 {[%clk 0:00:54]}  Rbe8 {[%clk 0:00:30]} 26. Nxh5+ {[%clk 0:00:48]}  Kf8 {[%clk 0:00:28]} 27. Nf4 {[%clk 0:00:41]}  Rg8 {[%clk 0:00:25]} 28. Qe5 {[%clk 0:00:26]}  Qxe5 {[%clk 0:00:20]} 29. Rxe5 {[%clk 0:00:27]}  f6 {[%clk 0:00:19]} 30. Ne6+ {[%clk 0:00:26]}  Kf7 {[%clk 0:00:17]} 31. Ree1 {[%clk 0:00:22]}  Nc6 {[%clk 0:00:15]} 32. Nc7 {[%clk 0:00:17]}  Rd8 {[%clk 0:00:14]} 33. Kg2 {[%clk 0:00:10]}  Rge8 {[%clk 0:00:14]} 34. Nxe8 {[%clk 0:00:10]}  Rxe8 {[%clk 0:00:14]} 35. Rxe8 {[%clk 0:00:10]}  Kxe8 {[%clk 0:00:15]} 36. Re1+ {[%clk 0:00:10]}  Kf7 {[%clk 0:00:16]} 37. h5 {[%clk 0:00:10]}  Ne7 {[%clk 0:00:16]} 38. Rh1 {[%clk 0:00:09]}  Kg7 {[%clk 0:00:16]} 39. f3 {[%clk 0:00:09]}  Kh6 {[%clk 0:00:16]} 40. g4 {[%clk 0:00:09]}  fxg4 {[%clk 0:00:15]} 41. fxg4 {[%clk 0:00:10]}  f5 {[%clk 0:00:16]} 42. Kg3 {[%clk 0:00:10]}  Kg5 {[%clk 0:00:15]} 43. h6 {[%clk 0:00:10]}  f4+ {[%clk 0:00:14]} 44. Kf3 {[%clk 0:00:10]}  Ng6 {[%clk 0:00:07]} 45. h7 {[%clk 0:00:09]}  Nh8 {[%clk 0:00:08]} 46. Rh5+ {[%clk 0:00:08]}  Kg6 {[%clk 0:00:08]} 47. Rxd5 {[%clk 0:00:08]}  Kxh7 {[%clk 0:00:07]} 48. Kxf4 {[%clk 0:00:08]}  Kg6 {[%clk 0:00:07]} 49. Rd6+ {[%clk 0:00:08]}  Kf7 {[%clk 0:00:07]} 50. Rd7+ {[%clk 0:00:08]}  Ke6 {[%clk 0:00:07]} 51. Rxb7 {[%clk 0:00:08]}  Kd5 {[%clk 0:00:08]} 52. Rb6 {[%clk 0:00:07]}  Nf7 {[%clk 0:00:07]} 53. Rxa6 {[%clk 0:00:07]}  Nd8 {[%clk 0:00:08]} 54. g5 {[%clk 0:00:06]}  Ne6+ {[%clk 0:00:09]} 55. Kf5 {[%clk 0:00:06]}  Ng7+ {[%clk 0:00:09]} 56. Kg6 {[%clk 0:00:06]}  Ne6 {[%clk 0:00:09]} 57. Kf6 {[%clk 0:00:06]}  Nc7 {[%clk 0:00:08]} 58. Ra7 {[%clk 0:00:05]}  Ne8+ {[%clk 0:00:08]} 59. Ke7 {[%clk 0:00:05]}  Nd6 {[%clk 0:00:08]} 60. Rd7 {[%clk 0:00:03]} 1-0


[Site "https://www.chess.com"]

[Event "Titled Tuesday Blitz December 27 Early 2022"]
[White "Levitan, Caleb Levi"]
[Black "Delorme, Alban"]
[WhiteFideId "14332620"]
[BlackFideId "623636"]
[WhiteElo "2129"]
[BlackElo "2298"]
[Result "1-0"]
[Round "11"]
[TimeControl "180+2"]
[Date "2022.12.27"]
[WhiteClock "0:00:20"]
[BlackClock "0:00:14"]

1. e4 {[%clk 0:03:00]}  c5 {[%clk 0:03:00]} 2. Nf3 {[%clk 0:03:01]}  d6 {[%clk 0:03:00]} 3. d4 {[%clk 0:03:01]}  cxd4 {[%clk 0:03:01]} 4. Nxd4 {[%clk 0:03:02]}  Nf6 {[%clk 0:03:02]} 5. Nc3 {[%clk 0:03:02]}  a6 {[%clk 0:03:03]} 6. Bc4 {[%clk 0:03:02]}  e6 {[%clk 0:03:03]} 7. Bb3 {[%clk 0:03:02]}  Be7 {[%clk 0:03:03]} 8. g4 {[%clk 0:02:59]}  Nc6 {[%clk 0:02:59]} 9. g5 {[%clk 0:02:54]}  Nd7 {[%clk 0:03:00]} 10. f4 {[%clk 0:02:47]}  g6 {[%clk 0:02:33]} 11. Be3 {[%clk 0:02:43]}  h6 {[%clk 0:02:33]} 12. gxh6 {[%clk 0:02:41]}  Rxh6 {[%clk 0:02:25]} 13. f5 {[%clk 0:02:25]}  Bh4+ {[%clk 0:02:24]} 14. Ke2 {[%clk 0:02:17]}  Bg5 {[%clk 0:02:23]} 15. Nxc6 {[%clk 0:02:06]}  bxc6 {[%clk 0:02:21]} 16. Qd2 {[%clk 0:02:01]}  Bxe3 {[%clk 0:02:16]} 17. Qxe3 {[%clk 0:02:00]}  Qh4 {[%clk 0:02:14]} 18. fxe6 {[%clk 0:01:55]}  Ne5 {[%clk 0:02:07]} 19. exf7+ {[%clk 0:01:53]}  Kf8 {[%clk 0:02:05]} 20. Raf1 {[%clk 0:01:42]}  Bg4+ {[%clk 0:00:41]} 21. Kd2 {[%clk 0:01:34]}  a5 {[%clk 0:00:29]} 22. Qg3 {[%clk 0:00:51]}  Qg5+ {[%clk 0:00:27]} 23. Qf4 {[%clk 0:00:44]}  Qh5 {[%clk 0:00:20]} 24. Qf6 {[%clk 0:00:28]}  a4 {[%clk 0:00:13]} 25. Qxd6+ {[%clk 0:00:24]}  Kg7 {[%clk 0:00:13]} 26. f8=Q+ {[%clk 0:00:23]}  Rxf8 {[%clk 0:00:13]} 27. Qxf8+ {[%clk 0:00:22]}  Kh7 {[%clk 0:00:14]} 28. Qg8# {[%clk 0:00:20]} 1-0


[Site "https://www.chess.com"]

[Event "Titled Tuesday Blitz December 27 Early 2022"]
[White "Melikhov, Evgeny V."]
[Black "Piesik, Piotr"]
[WhiteFideId "4122046"]
[BlackFideId "1136194"]
[WhiteElo "2269"]
[BlackElo "2426"]
[Result "1-0"]
[Round "11"]
[TimeControl "180+2"]
[Date "2022.12.27"]
[WhiteClock "0:01:00"]
[BlackClock "0:01:48"]

1. d4 {[%clk 0:02:54]}  c5 {[%clk 0:02:59]} 2. d5 {[%clk 0:02:54]}  e5 {[%clk 0:02:59]} 3. e4 {[%clk 0:02:52]}  d6 {[%clk 0:02:59]} 4. Bb5+ {[%clk 0:02:52]}  Nd7 {[%clk 0:02:59]} 5. a4 {[%clk 0:02:50]}  Be7 {[%clk 0:02:59]} 6. Nc3 {[%clk 0:02:49]}  Bg5 {[%clk 0:02:59]} 7. Nf3 {[%clk 0:02:46]}  Bxc1 {[%clk 0:02:58]} 8. Qxc1 {[%clk 0:02:45]}  Ne7 {[%clk 0:02:59]} 9. O-O {[%clk 0:02:39]}  O-O {[%clk 0:02:59]} 10. h3 {[%clk 0:02:30]}  Ng6 {[%clk 0:02:58]} 11. Ne2 {[%clk 0:02:29]}  Nf6 {[%clk 0:02:56]} 12. Qe3 {[%clk 0:02:15]}  Nh5 {[%clk 0:02:55]} 13. Kh2 {[%clk 0:02:03]}  Nhf4 {[%clk 0:02:51]} 14. Nxf4 {[%clk 0:02:02]}  Nxf4 {[%clk 0:02:49]} 15. Ng1 {[%clk 0:01:51]}  f5 {[%clk 0:02:47]} 16. exf5 {[%clk 0:01:46]}  Bxf5 {[%clk 0:02:46]} 17. g3 {[%clk 0:01:46]}  Ng6 {[%clk 0:02:28]} 18. Bd3 {[%clk 0:01:44]}  Qf6 {[%clk 0:02:23]} 19. Bxf5 {[%clk 0:01:40]}  Qxf5 {[%clk 0:02:24]} 20. c4 {[%clk 0:01:32]}  Ne7 {[%clk 0:02:23]} 21. f4 {[%clk 0:01:24]}  Qc2+ {[%clk 0:02:18]} 22. Qe2 {[%clk 0:01:23]}  Qxe2+ {[%clk 0:02:14]} 23. Nxe2 {[%clk 0:01:22]}  exf4 {[%clk 0:02:04]} 24. Nxf4 {[%clk 0:01:22]}  Nf5 {[%clk 0:02:03]} 25. Ne6 {[%clk 0:01:22]}  Rf6 {[%clk 0:02:00]} 26. g4 {[%clk 0:01:16]}  Ne3 {[%clk 0:01:59]} 27. Rxf6 {[%clk 0:01:15]}  gxf6 {[%clk 0:02:00]} 28. b3 {[%clk 0:01:15]}  Kf7 {[%clk 0:01:55]} 29. Re1 {[%clk 0:01:10]}  Nc2 {[%clk 0:01:54]} 30. Re2 {[%clk 0:01:10]}  Nb4 {[%clk 0:01:52]} 31. Nc7 {[%clk 0:01:01]}  a6 {[%clk 0:01:48]} 32. Nxa8 {[%clk 0:01:00]} 1-0


[Site "https://www.chess.com"]

[Event "Titled Tuesday Blitz December 27 Early 2022"]
[White "Mendez Fortes, Eduardo Jesus"]
[Black "Sadovsky, Artem"]
[WhiteFideId "3502376"]
[BlackFideId "4155840"]
[WhiteElo "2250"]
[BlackElo "2276"]
[Result "0-1"]
[Round "11"]
[TimeControl "180+2"]
[Date "2022.12.27"]
[WhiteClock "0:00:46"]
[BlackClock "0:01:19"]

1. e4 {[%clk 0:03:00]}  g6 {[%clk 0:02:49]} 2. d4 {[%clk 0:02:57]}  Bg7 {[%clk 0:02:49]} 3. Nc3 {[%clk 0:02:57]}  c6 {[%clk 0:02:50]} 4. f4 {[%clk 0:02:56]}  d5 {[%clk 0:02:50]} 5. e5 {[%clk 0:02:54]}  h5 {[%clk 0:02:51]} 6. Nf3 {[%clk 0:02:54]}  Nh6 {[%clk 0:02:52]} 7. Bd3 {[%clk 0:02:53]}  Bg4 {[%clk 0:02:52]} 8. h3 {[%clk 0:02:53]}  Bxf3 {[%clk 0:02:52]} 9. Qxf3 {[%clk 0:02:54]}  e6 {[%clk 0:02:53]} 10. Be3 {[%clk 0:02:47]}  Nf5 {[%clk 0:02:53]} 11. Bf2 {[%clk 0:02:44]}  h4 {[%clk 0:02:53]} 12. O-O {[%clk 0:02:42]}  Nd7 {[%clk 0:02:53]} 13. Ne2 {[%clk 0:02:42]}  Bf8 {[%clk 0:02:52]} 14. b3 {[%clk 0:02:42]}  Ba3 {[%clk 0:02:51]} 15. c4 {[%clk 0:02:38]}  a5 {[%clk 0:02:52]} 16. Rab1 {[%clk 0:02:36]}  Qb6 {[%clk 0:02:50]} 17. c5 {[%clk 0:02:34]}  Qd8 {[%clk 0:02:48]} 18. Be1 {[%clk 0:02:27]}  Rh5 {[%clk 0:02:47]} 19. Qf2 {[%clk 0:02:24]}  Qe7 {[%clk 0:02:45]} 20. Bc3 {[%clk 0:02:19]}  Kf8 {[%clk 0:02:22]} 21. Qe1 {[%clk 0:02:12]}  Kg7 {[%clk 0:02:14]} 22. Bxa5 {[%clk 0:02:07]}  Bxc5 {[%clk 0:02:13]} 23. Bxf5 {[%clk 0:01:52]}  gxf5 {[%clk 0:02:05]} 24. Bc3 {[%clk 0:01:51]}  Bb6 {[%clk 0:02:02]} 25. Qd2 {[%clk 0:01:46]}  Rh6 {[%clk 0:01:55]} 26. Kh1 {[%clk 0:01:46]}  Rg6 {[%clk 0:01:54]} 27. Ng1 {[%clk 0:01:46]}  Kh8 {[%clk 0:01:49]} 28. Nf3 {[%clk 0:01:46]}  Rag8 {[%clk 0:01:50]} 29. Rf2 {[%clk 0:01:43]}  f6 {[%clk 0:01:46]} 30. Re2 {[%clk 0:01:41]}  fxe5 {[%clk 0:01:46]} 31. dxe5 {[%clk 0:01:34]}  Nc5 {[%clk 0:01:43]} 32. Ng5 {[%clk 0:01:24]}  Rxg5 {[%clk 0:01:41]} 33. fxg5 {[%clk 0:01:22]}  Ne4 {[%clk 0:01:42]} 34. Rxe4 {[%clk 0:01:19]}  fxe4 {[%clk 0:01:43]} 35. Rf1 {[%clk 0:01:14]}  Qxg5 {[%clk 0:01:42]} 36. Qe2 {[%clk 0:01:14]}  d4 {[%clk 0:01:38]} 37. Bb4 {[%clk 0:01:11]}  e3 {[%clk 0:01:34]} 38. Rg1 {[%clk 0:01:02]}  Qxe5 {[%clk 0:01:28]} 39. Be7 {[%clk 0:00:58]}  d3 {[%clk 0:01:19]} 40. Qf3 {[%clk 0:00:46]}  Qf5 {[%clk 0:01:19]} 0-1


[Site "https://www.chess.com"]

[Event "Titled Tuesday Blitz December 27 Early 2022"]
[White "Mitrovic, Darko R"]
[Black "Rosh Jain"]
[WhiteFideId "927023"]
[BlackFideId "25789465"]
[WhiteElo "2220"]
[BlackElo "2248"]
[Result "0-1"]
[Round "11"]
[TimeControl "180+2"]
[Date "2022.12.27"]
[WhiteClock "0:00:34"]
[BlackClock "0:00:29"]

1. d4 {[%clk 0:02:35]}  Nf6 {[%clk 0:02:57]} 2. Nf3 {[%clk 0:02:35]}  e6 {[%clk 0:02:57]} 3. g3 {[%clk 0:02:35]}  d5 {[%clk 0:02:58]} 4. Bg2 {[%clk 0:02:34]}  Be7 {[%clk 0:02:54]} 5. O-O {[%clk 0:02:35]}  O-O {[%clk 0:02:54]} 6. b3 {[%clk 0:02:35]}  c5 {[%clk 0:02:54]} 7. dxc5 {[%clk 0:02:33]}  Bxc5 {[%clk 0:02:52]} 8. Bb2 {[%clk 0:02:33]}  Nc6 {[%clk 0:02:48]} 9. Nbd2 {[%clk 0:02:33]}  Re8 {[%clk 0:02:38]} 10. c4 {[%clk 0:02:33]}  d4 {[%clk 0:02:35]} 11. Ng5 {[%clk 0:02:25]}  e5 {[%clk 0:02:33]} 12. Nde4 {[%clk 0:02:20]}  Nxe4 {[%clk 0:02:11]} 13. Nxe4 {[%clk 0:02:19]}  Bb6 {[%clk 0:02:03]} 14. c5 {[%clk 0:02:18]}  Bc7 {[%clk 0:01:53]} 15. Rc1 {[%clk 0:02:18]}  Be6 {[%clk 0:01:50]} 16. h4 {[%clk 0:02:12]}  h6 {[%clk 0:01:44]} 17. Qd2 {[%clk 0:02:06]}  f5 {[%clk 0:01:21]} 18. Nd6 {[%clk 0:02:03]}  Bxd6 {[%clk 0:01:18]} 19. cxd6 {[%clk 0:02:03]}  Qxd6 {[%clk 0:01:19]} 20. e3 {[%clk 0:01:59]}  Rad8 {[%clk 0:01:18]} 21. exd4 {[%clk 0:01:54]}  Nxd4 {[%clk 0:01:17]} 22. Bxd4 {[%clk 0:01:53]}  exd4 {[%clk 0:01:18]} 23. Bxb7 {[%clk 0:01:52]}  Bd5 {[%clk 0:01:18]} 24. Bxd5+ {[%clk 0:01:50]}  Qxd5 {[%clk 0:01:19]} 25. Rfd1 {[%clk 0:01:47]}  d3 {[%clk 0:01:18]} 26. Rc3 {[%clk 0:01:42]}  Qf3 {[%clk 0:01:17]} 27. Re1 {[%clk 0:01:22]}  Rxe1+ {[%clk 0:00:43]} 28. Qxe1 {[%clk 0:01:21]}  Qe2 {[%clk 0:00:42]} 29. Qf1 {[%clk 0:00:46]}  Qxf1+ {[%clk 0:00:35]} 30. Kxf1 {[%clk 0:00:46]}  d2 {[%clk 0:00:36]} 31. Rf3 {[%clk 0:00:44]}  d1=Q+ {[%clk 0:00:33]} 32. Kg2 {[%clk 0:00:45]}  Qe2 {[%clk 0:00:31]} 33. Rxf5 {[%clk 0:00:44]}  Qe4+ {[%clk 0:00:29]} 34. Rf3 {[%clk 0:00:42]}  Rd3 {[%clk 0:00:29]} 35. h5 {[%clk 0:00:41]}  Qxf3+ {[%clk 0:00:30]} 36. Kh2 {[%clk 0:00:39]}  Qxh5+ {[%clk 0:00:26]} 37. Kg2 {[%clk 0:00:39]}  Qf3+ {[%clk 0:00:27]} 38. Kh2 {[%clk 0:00:37]}  Rd1 {[%clk 0:00:28]} 39. g4 {[%clk 0:00:34]}  Rh1# {[%clk 0:00:29]} 0-1


[Site "https://www.chess.com"]

[Event "Titled Tuesday Blitz December 27 Early 2022"]
[White "Omariev, Maksim"]
[Black "Vifleemskaia, Svetlana"]
[WhiteFideId "4193423"]
[BlackFideId "4129490"]
[WhiteElo "2304"]
[BlackElo "1971"]
[Result "0-1"]
[Round "11"]
[TimeControl "180+2"]
[Date "2022.12.27"]
[WhiteClock "0:00:02"]
[BlackClock "0:00:16"]

1. g4 {[%clk 0:03:00]}  d5 {[%clk 0:02:53]} 2. Bg2 {[%clk 0:03:01]}  c6 {[%clk 0:02:51]} 3. h3 {[%clk 0:02:59]}  e5 {[%clk 0:02:51]} 4. a3 {[%clk 0:02:59]}  Bd6 {[%clk 0:02:51]} 5. b4 {[%clk 0:02:59]}  a5 {[%clk 0:02:50]} 6. b5 {[%clk 0:02:44]}  h5 {[%clk 0:02:45]} 7. gxh5 {[%clk 0:02:38]}  Nf6 {[%clk 0:02:40]} 8. bxc6 {[%clk 0:02:24]}  bxc6 {[%clk 0:02:38]} 9. c4 {[%clk 0:02:15]}  Nxh5 {[%clk 0:02:24]} 10. d3 {[%clk 0:02:10]}  Be6 {[%clk 0:01:59]} 11. Qa4 {[%clk 0:02:00]}  Qd7 {[%clk 0:01:58]} 12. Nc3 {[%clk 0:01:49]}  Nf6 {[%clk 0:01:24]} 13. Bg5 {[%clk 0:01:39]}  d4 {[%clk 0:01:23]} 14. Bxf6 {[%clk 0:01:36]}  gxf6 {[%clk 0:01:22]} 15. Ne4 {[%clk 0:01:28]}  Be7 {[%clk 0:01:20]} 16. Nf3 {[%clk 0:01:06]}  Rg8 {[%clk 0:01:12]} 17. Rh2 {[%clk 0:00:50]}  c5 {[%clk 0:00:53]} 18. Qxd7+ {[%clk 0:00:41]}  Nxd7 {[%clk 0:00:52]} 19. Rb1 {[%clk 0:00:41]}  Rb8 {[%clk 0:00:53]} 20. Rxb8+ {[%clk 0:00:40]}  Nxb8 {[%clk 0:00:54]} 21. h4 {[%clk 0:00:31]}  f5 {[%clk 0:00:51]} 22. Neg5 {[%clk 0:00:25]}  Nd7 {[%clk 0:00:45]} 23. Nxe6 {[%clk 0:00:20]}  fxe6 {[%clk 0:00:46]} 24. Kd2 {[%clk 0:00:20]}  Kf7 {[%clk 0:00:45]} 25. Ne1 {[%clk 0:00:12]}  Nf6 {[%clk 0:00:42]} 26. Bf3 {[%clk 0:00:10]}  e4 {[%clk 0:00:40]} 27. Bh1 {[%clk 0:00:07]}  Ng4 {[%clk 0:00:37]} 28. Rg2 {[%clk 0:00:06]}  Bxh4 {[%clk 0:00:33]} 29. dxe4 {[%clk 0:00:05]}  Nxf2 {[%clk 0:00:27]} 30. Rxg8 {[%clk 0:00:05]}  Kxg8 {[%clk 0:00:27]} 31. Bg2 {[%clk 0:00:03]}  fxe4 {[%clk 0:00:26]} 32. Nc2 {[%clk 0:00:02]}  Kf7 {[%clk 0:00:25]} 33. Kc1 {[%clk 0:00:02]}  Kf6 {[%clk 0:00:24]} 34. Na1 {[%clk 0:00:02]}  a4 {[%clk 0:00:22]} 35. Nc2 {[%clk 0:00:02]}  Ke5 {[%clk 0:00:21]} 36. Kd2 {[%clk 0:00:02]}  e3+ {[%clk 0:00:20]} 37. Kc1 {[%clk 0:00:02]}  Ne4 {[%clk 0:00:20]} 38. Ne1 {[%clk 0:00:02]}  Bxe1 {[%clk 0:00:20]} 39. Bf3 {[%clk 0:00:02]}  Bc3 {[%clk 0:00:18]} 40. Kc2 {[%clk 0:00:02]}  Nd2 {[%clk 0:00:17]} 41. Bg4 {[%clk 0:00:02]}  Nxc4 {[%clk 0:00:16]} 42. Bh5 {[%clk 0:00:01]}  Nxa3+ {[%clk 0:00:17]} 43. Kd3 {[%clk 0:00:02]}  c4# {[%clk 0:00:16]} 0-1


[Site "https://www.chess.com"]

[Event "Titled Tuesday Blitz December 27 Early 2022"]
[White "Oparin, Grigoriy"]
[Black "Bok, Benjamin"]
[WhiteFideId "24125890"]
[BlackFideId "1017063"]
[WhiteElo "2667"]
[BlackElo "2607"]
[Result "1/2-1/2"]
[Round "11"]
[TimeControl "180+2"]
[Date "2022.12.27"]
[WhiteClock "0:00:08"]
[BlackClock "0:00:06"]

1. d4 {[%clk 0:03:00]}  Nf6 {[%clk 0:02:59]} 2. c4 {[%clk 0:03:01]}  e6 {[%clk 0:02:59]} 3. Nf3 {[%clk 0:03:02]}  d5 {[%clk 0:02:59]} 4. g3 {[%clk 0:03:02]}  Bb4+ {[%clk 0:02:57]} 5. Bd2 {[%clk 0:03:00]}  Be7 {[%clk 0:02:57]} 6. Bg2 {[%clk 0:03:00]}  O-O {[%clk 0:02:57]} 7. O-O {[%clk 0:03:01]}  c6 {[%clk 0:02:58]} 8. Qc2 {[%clk 0:03:01]}  Nbd7 {[%clk 0:02:58]} 9. h4 {[%clk 0:02:59]}  b6 {[%clk 0:02:56]} 10. Nc3 {[%clk 0:02:58]}  dxc4 {[%clk 0:02:52]} 11. e4 {[%clk 0:02:58]}  Bb7 {[%clk 0:02:49]} 12. e5 {[%clk 0:02:47]}  Nd5 {[%clk 0:02:48]} 13. Ne4 {[%clk 0:02:48]}  h6 {[%clk 0:02:44]} 14. Qxc4 {[%clk 0:02:44]}  c5 {[%clk 0:02:45]} 15. Rfd1 {[%clk 0:02:38]}  Rc8 {[%clk 0:02:42]} 16. dxc5 {[%clk 0:02:34]}  Nxc5 {[%clk 0:02:41]} 17. Nxc5 {[%clk 0:02:34]}  Bxc5 {[%clk 0:02:36]} 18. Qg4 {[%clk 0:02:35]}  f5 {[%clk 0:02:32]} 19. exf6 {[%clk 0:02:22]}  Qxf6 {[%clk 0:02:32]} 20. Re1 {[%clk 0:01:44]}  Ne7 {[%clk 0:01:53]} 21. Bc3 {[%clk 0:01:30]}  Qg6 {[%clk 0:01:30]} 22. Qxg6 {[%clk 0:01:25]}  Nxg6 {[%clk 0:01:31]} 23. Rxe6 {[%clk 0:01:25]}  Bxf3 {[%clk 0:01:01]} 24. Bxf3 {[%clk 0:01:01]}  Rxf3 {[%clk 0:00:51]} 25. Rxg6 {[%clk 0:01:01]}  Rc7 {[%clk 0:00:50]} 26. Rf1 {[%clk 0:00:54]}  Rcf7 {[%clk 0:00:48]} 27. Be1 {[%clk 0:00:35]}  Kh7 {[%clk 0:00:48]} 28. Rg4 {[%clk 0:00:36]}  h5 {[%clk 0:00:34]} 29. Rg5 {[%clk 0:00:36]}  g6 {[%clk 0:00:34]} 30. Kg2 {[%clk 0:00:36]}  Bd4 {[%clk 0:00:16]} 31. b3 {[%clk 0:00:35]}  Bc3 {[%clk 0:00:09]} 32. Bxc3 {[%clk 0:00:18]}  Rxc3 {[%clk 0:00:10]} 33. Re5 {[%clk 0:00:17]}  Rc2 {[%clk 0:00:10]} 34. a4 {[%clk 0:00:17]}  Rb2 {[%clk 0:00:10]} 35. Re3 {[%clk 0:00:17]}  Kh6 {[%clk 0:00:10]} 36. Rd3 {[%clk 0:00:15]}  Rf5 {[%clk 0:00:09]} 37. Rd7 {[%clk 0:00:14]}  a5 {[%clk 0:00:09]} 38. Rd3 {[%clk 0:00:14]}  b5 {[%clk 0:00:09]} 39. axb5 {[%clk 0:00:14]}  Rxb5 {[%clk 0:00:10]} 40. Ra1 {[%clk 0:00:14]}  R2xb3 {[%clk 0:00:09]} 41. Rxb3 {[%clk 0:00:14]}  Rxb3 {[%clk 0:00:10]} 42. Rxa5 {[%clk 0:00:15]}  Rb6 {[%clk 0:00:11]} 43. Ra4 {[%clk 0:00:15]}  Rb2 {[%clk 0:00:11]} 44. Re4 {[%clk 0:00:15]}  Rc2 {[%clk 0:00:11]} 45. Re6 {[%clk 0:00:15]}  Ra2 {[%clk 0:00:11]} 46. Kf3 {[%clk 0:00:15]}  Ra3+ {[%clk 0:00:11]} 47. Re3 {[%clk 0:00:15]}  Ra2 {[%clk 0:00:11]} 48. Re2 {[%clk 0:00:16]}  Ra3+ {[%clk 0:00:12]} 49. Kg2 {[%clk 0:00:17]}  Kg7 {[%clk 0:00:11]} 50. f3 {[%clk 0:00:17]}  Kf6 {[%clk 0:00:11]} 51. Re4 {[%clk 0:00:18]}  Ra2+ {[%clk 0:00:10]} 52. Kh3 {[%clk 0:00:18]}  Ra3 {[%clk 0:00:11]} 53. Rf4+ {[%clk 0:00:18]}  Kg7 {[%clk 0:00:11]} 54. g4 {[%clk 0:00:15]}  hxg4+ {[%clk 0:00:11]} 55. Kxg4 {[%clk 0:00:15]}  Ra1 {[%clk 0:00:10]} 56. Rc4 {[%clk 0:00:14]}  Kh6 {[%clk 0:00:07]} 57. Rc6 {[%clk 0:00:13]}  Ra4+ {[%clk 0:00:07]} 58. f4 {[%clk 0:00:13]}  Kg7 {[%clk 0:00:05]} 59. Re6 {[%clk 0:00:14]}  Ra5 {[%clk 0:00:03]} 60. Re5 {[%clk 0:00:14]}  Ra1 {[%clk 0:00:04]} 61. Rc5 {[%clk 0:00:13]}  Rg1+ {[%clk 0:00:01]} 62. Kf3 {[%clk 0:00:14]}  Rh1 {[%clk 0:00:02]} 63. Kg3 {[%clk 0:00:14]}  Rg1+ {[%clk 0:00:02]} 64. Kf3 {[%clk 0:00:10]}  Rh1 {[%clk 0:00:02]} 65. Kg3 {[%clk 0:00:07]}  Rg1+ {[%clk 0:00:03]} 66. Kf2 {[%clk 0:00:08]}  Rh1 {[%clk 0:00:03]} 67. h5 {[%clk 0:00:05]}  Rxh5 {[%clk 0:00:03]} 68. Rxh5 {[%clk 0:00:06]}  gxh5 {[%clk 0:00:04]} 69. Kg3 {[%clk 0:00:06]}  Kf6 {[%clk 0:00:04]} 70. Kh4 {[%clk 0:00:07]}  Kf5 {[%clk 0:00:05]} 71. Kxh5 {[%clk 0:00:08]}  Kxf4 {[%clk 0:00:06]} 1/2-1/2


[Site "https://www.chess.com"]